bitfinex-derivatives/quotes_SOLF0:USTF0_20220109
["timestamp","ask_amount","ask_price","bid_price","bid_amount"]
[1641772029341,7.95233436,140.85,140.82,2.4917377]
[1641772029541,5.68009133,140.85,140.82,2.4917377]
[1641772029844,9.68009133,140.85,140.82,2.4917377]
[1641772030042,37.34488133,140.85,140.82,2.4917377]
[1641772030543,2.27096322,140.84,140.82,2.4917377]
[1641772033745,2.27096322,140.84,140.82,15.00440184]
[1641772034344,2.27096322,140.84,140.81,17.49613954]
[1641772034545,5.68009818,140.85,140.81,17.49613954]
[1641772034945,4.0,140.82,140.79,14.02785903]
[1641772035146,5.68093749,140.83,140.8,15.04245074]
[1641772035345,6.81774709,140.81,140.8,9.35993205]
[1641772035545,1.775,140.85,140.8,9.35993205]
[1641772035746,8.87652495,140.86,140.8,9.35993205]
[1641772035946,27.66479,140.83,140.79,14.02785903]
[1641772036249,27.66479,140.83,140.79,4.03014433]
[1641772036445,31.66479,140.83,140.75,27.66479]
[1641772036747,31.66479,140.83,140.73,27.66479]
[1641772037646,6.8188037,140.79,140.73,37.65818269]
[1641772037845,6.8188037,140.79,140.74,4.0]
[1641772038046,29.44079,140.83,140.74,4.0]
[1641772038249,27.66479,140.83,140.73,37.65818269]
[1641772038446,27.66479,140.83,140.73,41.65818269]
[1641772038648,27.66479,140.83,140.74,4.0]
[1641772038847,27.66479,140.83,140.75,4.0]
[1641772039951,27.66479,140.83,140.74,9.99339269]
[1641772040150,27.66479,140.83,140.75,4.0]
[1641772040356,27.66479,140.83,140.74,13.99339269]
[1641772040550,27.66479,140.83,140.74,4.0]
[1641772041252,27.66479,140.83,140.74,13.99339269]
[1641772041454,27.66479,140.83,140.8,4.0]
[1641772041650,2.27160063,140.84,140.8,4.0]
[1641772042050,2.27160063,140.84,140.8,31.66479]
[1641772042251,2.27160063,140.84,140.8,27.66479]
[1641772042449,8.1766434,140.89,140.8,31.66479]
[1641772042850,3.48065962,140.82,140.8,31.66479]
[1641772043053,3.48065962,140.82,140.8,27.66479]
[1641772043253,3.48065962,140.82,140.78,27.66479]
[1641772045953,3.48065962,140.82,140.77,9.99533406]
[1641772046354,3.48065962,140.82,140.76,9.99533406]
[1641772046555,33.34473752,140.85,140.76,9.99533406]
[1641772046855,2.67432915,140.81,140.76,9.99533406]
[1641772048555,2.67432915,140.81,140.75,64.1337]
[1641772049659,2.67432915,140.81,140.76,9.99850586]
[1641772050460,2.67432915,140.81,140.75,64.1337]
[1641772050662,4.0,140.82,140.75,64.1337]
[1641772051065,9.68180234,140.81,140.75,64.1337]
[1641772051266,4.0,140.8,140.74,27.66479]
[1641772051463,3.48072096,140.8,140.77,4.03135342]
[1641772051864,5.68256162,140.79,140.77,4.03135342]
[1641772052665,5.68300343,140.78,140.77,4.03135342]
[1641772053471,3.48072096,140.8,140.77,4.03135342]
[1641772053970,9.16262727,140.8,140.77,4.03135342]
[1641772054171,9.16291067,140.8,140.77,4.03135342]
[1641772055270,5.68218971,140.8,140.78,4.03190893]
[1641772055469,3.48117866,140.79,140.78,4.03190893]
[1641772055973,3.48117866,140.79,140.7,54.96696464]
[1641772056171,27.66479,140.76,140.7,54.96696464]
[1641772056372,5.68408175,140.75,140.69,74.73088127]
[1641772056972,6.81959455,140.78,140.69,74.73088127]
[1641772057172,6.81959455,140.78,140.69,78.73088127]
[1641772057372,3.48117866,140.79,140.7,9.99986859]
[1641772057773,9.16361485,140.79,140.7,9.99986859]
[1641772058575,3.48117866,140.79,140.7,9.99986859]
[1641772058773,11.10656291,140.78,140.7,9.99986859]
[1641772058975,4.0,140.74,140.7,9.99986859]
[1641772059173,5.684719,140.73,140.7,9.99986859]
[1641772059575,6.82026781,140.76,140.7,9.99986859]
[1641772059775,5.68506718,140.72,140.7,9.99986859]
[1641772059979,5.68383728,140.75,140.7,9.99986859]
[1641772060175,27.66479,140.74,140.7,9.99986859]
[1641772060476,27.66479,140.74,140.69,39.96306183]
[1641772060675,27.66479,140.74,140.71,4.0]
[1641772060875,7.10656291,140.78,140.71,4.0]
[1641772061079,7.10656291,140.78,140.7,4.0]
[1641772061277,14.29980495,140.79,140.68,4.0]
[1641772061779,5.6830396,140.77,140.68,4.0]
[1641772062078,5.6830396,140.77,140.7,27.66479]
[1641772062477,5.6830396,140.77,140.7,31.66479]
[1641772062878,5.6830396,140.77,140.7,27.66479]
[1641772063478,4.03358157,140.75,140.7,27.66479]
[1641772064180,4.03358157,140.75,140.7,31.66479]
[1641772064782,4.03358157,140.75,140.7,27.66479]
[1641772064986,4.03358157,140.75,140.7,31.66479]
[1641772067188,4.03358157,140.75,140.71,25.03427455]
[1641772067486,5.6830396,140.77,140.71,25.03427455]
[1641772067687,4.03290942,140.74,140.71,25.03427455]
[1641772067888,4.03290942,140.74,140.7,46.7046457]
[1641772068487,4.03290942,140.74,140.7,42.7046457]
[1641772068688,4.03290942,140.74,140.71,25.03252661]
[1641772068894,91.45349,140.81,140.73,4.0]
[1641772068895,27.66479,140.81,140.73,4.0]
[1641772069089,27.66479,140.81,140.72,4.0]
[1641772069690,27.66479,140.81,140.75,4.0]
[1641772070090,5.6812266,140.82,140.75,31.66479]
[1641772071094,5.6812266,140.82,140.75,27.66479]
[1641772073694,3.48100992,140.8,140.75,27.66479]
[1641772073895,9.16300369,140.8,140.75,27.66479]
[1641772075096,9.16300369,140.8,140.76,4.03174295]
[1641772075394,3.48100992,140.8,140.76,4.03174295]
[1641772075795,3.48100992,140.8,140.77,2.49662143]
[1641772076196,3.48100992,140.8,140.79,31.66479]
[1641772076398,15.0398557,140.87,140.79,31.66479]
[1641772076594,15.0398557,140.87,140.81,4.0]
[1641772076796,15.0398557,140.88,140.81,4.0]
[1641772076995,15.0398557,140.88,140.79,27.66479]
[1641772077595,3.4810744,140.81,140.79,31.66479]
[1641772077796,3.4810744,140.81,140.8,2.49662143]
[1641772078796,5.6783566,140.89,140.8,6.49662143]
[1641772078997,5.6783566,140.89,140.81,4.0]
[1641772079195,5.6783566,140.89,140.8,2.49662143]
[1641772079596,5.6783566,140.89,140.81,2.49662143]
[1641772080198,5.6783566,140.89,140.82,27.66479]
[1641772081700,5.67910526,140.87,140.79,27.66479]
[1641772082000,4.0,140.86,140.79,27.66479]
[1641772082202,31.66479,140.85,140.79,27.66479]
[1641772082602,4.0,140.82,140.76,19.07180486]
[1641772082799,4.0,140.82,140.76,15.0398557]
[1641772083201,4.0,140.82,140.74,27.66479]
[1641772083202,4.0,140.82,140.75,2.49255032]
[1641772084802,4.0,140.82,140.74,27.66479]
[1641772085301,5.68077468,140.83,140.74,27.66479]
[1641772085302,5.68163668,140.81,140.74,27.66479]
[1641772086404,5.68163668,140.81,140.75,2.49262602]
[1641772086804,5.68076578,140.83,140.75,2.49262602]
[1641772087505,5.68076578,140.83,140.76,4.0]
[1641772087704,5.68076578,140.83,140.74,27.66479]
[1641772087904,1.39226274,140.81,140.78,4.0]
[1641772088303,15.0398557,140.86,140.8,27.66479]
[1641772088503,33.34327012,140.89,140.8,27.66479]
[1641772088703,37.34327012,140.89,140.8,27.66479]
[1641772089605,33.34327012,140.89,140.8,27.66479]
[1641772089807,5.67942614,140.86,140.76,15.0398557]
[1641772090207,27.66479,140.85,140.76,15.0398557]
[1641772091008,5.67942614,140.86,140.76,2.493434]
[1641772092209,49.51854065,140.89,140.79,27.66479]
[1641772092811,34.47868495,140.89,140.8,2.493434]
[1641772093411,0.97512339,140.88,140.8,2.493434]
[1641772094211,0.97512339,140.88,140.81,4.0]
[1641772094611,0.97512339,140.88,140.82,4.0]
[1641772095213,0.97512339,140.88,140.79,133.7855357]
[1641772095813,0.97512339,140.88,140.8,2.49442268]
[1641772097215,27.66479,140.89,140.8,2.49442268]
[1641772097418,0.97460795,140.87,140.8,2.49442268]
[1641772098717,0.97460795,140.87,140.8,6.49442268]
[1641772098919,0.97460795,140.87,140.8,10.5247068]
[1641772099317,0.97460795,140.87,140.8,6.5247068]
[1641772099919,0.97460795,140.87,140.81,2.49442268]
[1641772100121,10.65388705,140.87,140.81,2.49442268]
[1641772100619,10.65388705,140.87,140.8,4.03028412]
[1641772100819,9.6792791,140.87,140.8,4.03028412]
[1641772101220,5.68014462,140.85,140.8,4.03028412]
[1641772102020,9.68014462,140.85,140.8,4.03028412]
[1641772102226,33.34493462,140.85,140.8,4.03028412]
[1641772102525,33.34493462,140.85,140.76,27.66479]
[1641772102727,2.51870233,140.84,140.81,4.03028396]
[1641772104829,5.68088051,140.83,140.81,4.03028396]
[1641772105235,9.68088051,140.83,140.81,4.03028396]
[1641772105833,15.36183216,140.83,140.81,4.03028396]
[1641772106433,15.36183216,140.83,140.76,27.66479]
[1641772107034,5.68095165,140.83,140.76,27.66479]
[1641772107234,0.97510964,140.84,140.76,31.66479]
[1641772107635,0.97510964,140.84,140.77,4.0]
[1641772107837,0.97510964,140.84,140.77,2.49683066]
[1641772108241,0.97510964,140.84,140.78,4.0]
[1641772108437,0.97510964,140.84,140.79,27.66479]
[1641772108838,0.97510964,140.84,140.79,31.66479]
[1641772109037,42.7046457,140.89,140.8,4.0]
[1641772109237,0.97540266,140.82,140.79,27.66479]
[1641772109637,0.97540266,140.82,140.8,2.49683066]
[1641772112840,27.66479,140.89,140.8,2.49683066]
[1641772113041,0.97451713,140.88,140.8,2.49683066]
[1641772113443,6.65339377,140.88,140.8,2.49683066]
[1641772113642,4.0,140.87,140.8,2.49683066]
[1641772113842,9.67978963,140.86,140.8,2.49683066]
[1641772114042,4.0,140.84,140.8,2.49683066]
[1641772114242,9.68059593,140.84,140.8,2.49683066]
[1641772114442,37.34538593,140.84,140.81,4.03061029]
[1641772114642,9.68135782,140.82,140.81,4.03061029]
[1641772114842,9.68135782,140.82,140.76,27.66479]
[1641772115043,5.68174769,140.81,140.75,68.23565561]
[1641772115244,5.68174769,140.81,140.74,42.7046457]
[1641772115546,9.68253376,140.79,140.77,2.49820805]
[1641772115744,9.68253376,140.79,140.74,15.0398557]
[1641772115946,5.68366173,140.76,140.74,15.0398557]
[1641772116147,9.68366173,140.76,140.74,15.0398557]
[1641772116347,9.68366173,140.76,140.68,25.04628669]
[1641772116547,5.68366173,140.76,140.68,52.71107669]
[1641772117350,27.66479,140.78,140.69,4.0]
[1641772119350,27.66479,140.78,140.69,11.10328172]
[1641772119750,6.81804334,140.81,140.69,7.10328172]
[1641772119953,15.0398557,140.82,140.69,11.10328172]
[1641772120152,80.3807557,140.83,140.71,4.0]
[1641772120352,15.0398557,140.83,140.72,4.0]
[1641772120556,15.0398557,140.83,140.74,27.66479]
[1641772120955,55.32958,140.84,140.74,27.66479]
[1641772121155,2.18520653,140.75,140.73,59.7514]
[1641772121359,2.18520653,140.75,140.72,15.0398557]
[1641772121756,2.18520653,140.75,140.7,15.0398557]
[1641772122357,2.18520653,140.75,140.7,19.0398557]
[1641772122557,2.18520653,140.75,140.72,27.66479]
[1641772124859,5.68204235,140.8,140.72,27.66479]
[1641772126364,9.68291235,140.78,140.69,25.02983593]
[1641772126564,27.66479,140.74,140.69,25.02983593]
[1641772127263,4.0,140.73,140.69,15.0398557]
[1641772127463,37.34933704,140.74,140.68,27.66479]
[1641772127666,33.34933704,140.74,140.68,27.66479]
[1641772128865,37.34933704,140.74,140.68,27.66479]
[1641772129068,4.0,140.72,140.68,27.66479]
[1641772129268,4.0,140.73,140.68,27.66479]
[1641772129466,33.34933704,140.74,140.68,27.66479]
[1641772129666,27.66479,140.74,140.68,27.66479]
[1641772129867,27.66479,140.76,140.68,27.66479]
[1641772130068,4.0,140.78,140.68,31.66479]
[1641772130270,22.90703406,140.79,140.68,31.66479]
[1641772130467,27.66479,140.78,140.68,31.66479]
[1641772130667,33.3475933,140.78,140.68,27.66479]
[1641772132869,33.3475933,140.78,140.68,31.66479]
[1641772133069,34.77034299,140.8,140.73,4.0]
[1641772133270,20.72118554,140.82,140.73,4.0]
[1641772133471,15.0398557,140.82,140.74,4.0]
[1641772134171,4.0,140.84,140.72,4.0]
[1641772134370,4.0,140.84,140.73,4.0]
[1641772134571,27.66479,140.83,140.75,27.66479]
[1641772134772,4.0,140.82,140.73,27.66479]
[1641772135472,9.68131808,140.82,140.73,27.66479]
[1641772136273,5.68131808,140.82,140.73,27.66479]
[1641772137973,5.68206362,140.8,140.71,61.4284]
[1641772138373,9.68206362,140.8,140.71,61.4284]
[1641772138675,33.34768454,140.78,140.71,61.4284]
[1641772139075,71.11884336,140.82,140.71,61.4284]
[1641772139275,5.68158889,140.81,140.71,61.4284]
[1641772139475,5.68158889,140.81,140.74,4.03263189]
[1641772140576,27.66479,140.8,140.74,4.03263189]
[1641772141177,5.68158889,140.81,140.74,4.03263189]
[1641772142676,5.68158889,140.81,140.75,27.66479]
[1641772143381,5.68158889,140.81,140.75,31.69772267]
[1641772143582,27.66479,140.83,140.75,35.69772267]
[1641772143981,27.66479,140.83,140.75,31.69772267]
[1641772144181,15.0398557,140.86,140.78,4.0]
[1641772144381,15.0398557,140.86,140.79,4.0]
[1641772144781,15.0398557,140.86,140.82,27.66479]
[1641772145181,15.0398557,140.89,140.82,27.66479]
[1641772146081,35.8413549,140.9,140.82,27.66479]
[1641772146483,39.8413549,140.9,140.82,27.66479]
[1641772146683,4.0,140.89,140.82,27.66479]
[1641772146882,5.67888253,140.88,140.8,27.66479]
[1641772148284,2.18384415,140.85,140.8,27.66479]
[1641772150388,2.18384415,140.85,140.78,27.66479]
[1641772150789,29.84863415,140.85,140.78,27.66479]
[1641772151591,29.84863415,140.85,140.81,4.03118191]
[1641772152090,27.66479,140.85,140.81,4.03118191]
[1641772152290,2.18326236,140.84,140.81,4.03118191]
[1641772153892,7.86348951,140.84,140.81,4.03118191]
[1641772154092,7.86348951,140.84,140.81,8.191e-05]
[1641772154291,5.68063168,140.83,140.81,8.191e-05]
[1641772154691,27.66479,140.82,140.81,8.191e-05]
[1641772155092,27.66479,140.82,140.74,27.66479]
[1641772156894,5.68172614,140.81,140.72,27.66479]
[1641772157394,5.68172614,140.81,140.74,4.0]
[1641772157596,2.18367592,140.83,140.74,4.0]
[1641772157895,2.18367592,140.83,140.75,4.0]
[1641772158095,2.18367592,140.83,140.74,12.78462478]
[1641772158295,2.18367592,140.83,140.74,7.10075978]
[1641772158698,2.18367592,140.83,140.77,27.66479]
[1641772159898,2.18367592,140.83,140.74,7.10075978]
[1641772160298,9.68055566,140.84,140.74,7.10075978]
[1641772160498,3.39373177,140.81,140.75,2.49401219]
[1641772160800,3.39373177,140.81,140.75,30.15880219]
[1641772161399,3.39373177,140.81,140.75,27.66479]
[1641772162100,3.39373177,140.81,140.72,42.7046457]
[1641772162503,5.68214438,140.8,140.72,42.7046457]
[1641772163303,5.68214438,140.8,140.73,2.49645232]
[1641772163502,31.05852177,140.81,140.73,2.49645232]
[1641772164303,27.66479,140.81,140.73,2.49645232]
[1641772166405,10.2107606,140.83,140.73,2.49645232]
[1641772168107,6.81710005,140.83,140.73,2.49645232]
[1641772168307,6.81710005,140.83,140.73,6.49645232]
[1641772168507,3.3939029,140.8,140.73,6.49645232]
[1641772168907,3.3939029,140.8,140.75,7.10025561]
[1641772169109,3.3939029,140.8,140.77,27.66479]
[1641772169308,15.0398557,140.84,140.77,27.66479]
[1641772169309,15.0398557,140.84,140.77,34.76403748]
[1641772169510,15.0398557,140.84,140.77,38.76403748]
[1641772169809,15.0398557,140.84,140.77,34.76403748]
[1641772170310,2.52015958,140.86,140.78,2.49645232]
[1641772171311,2.52015958,140.86,140.8,27.66479]
[1641772171810,2.52015958,140.88,140.8,27.66479]
[1641772172211,6.52015958,140.88,140.8,27.66479]
[1641772172410,4.0,140.83,140.78,2.49645232]
[1641772172610,3.3934341,140.79,140.76,15.0398557]
[1641772173612,3.3934341,140.79,140.75,2.49773256]
[1641772175211,3.3934341,140.79,140.77,27.66479]
[1641772175612,15.0398557,140.87,140.77,38.76378549]
[1641772175813,15.0398557,140.87,140.78,4.0]
[1641772176012,15.0398557,140.87,140.77,34.76378549]
[1641772176212,55.32958,140.89,140.78,27.54232616]
[1641772177414,8.1987598,140.88,140.78,2.49773256]
[1641772177814,12.1987598,140.88,140.78,2.49773256]
[1641772178015,5.67956184,140.86,140.78,2.49773256]
[1641772178215,12.1987598,140.88,140.81,4.0]
[1641772178216,2.52002146,140.87,140.81,4.0]
[1641772178817,39.96306183,140.91,140.82,2.49773256]
[1641772179017,63.5307,140.92,140.82,2.49773256]
[1641772179216,63.5307,140.92,140.82,6.49773256]
[1641772179417,63.5307,140.92,140.85,27.66479]
[1641772179616,15.0398557,140.93,140.85,27.66479]
[1641772179817,2.52021068,140.91,140.85,27.66479]
[1641772180616,2.52021068,140.93,140.86,2.49773256]
[1641772181317,27.66479,140.94,140.86,2.49773256]
[1641772181919,27.66479,140.94,140.85,27.66479]
[1641772182119,2.51501398,140.93,140.85,27.66479]
[1641772183418,2.51501398,140.93,140.86,7.09471444]
[1641772183619,27.66479,140.94,140.86,7.09471444]
[1641772183820,27.66479,140.94,140.85,27.66479]
[1641772184120,7.09949949,140.92,140.82,15.0398557]
[1641772184318,4.0,140.87,140.82,15.0398557]
[1641772184519,4.0,140.87,140.79,39.96306183]
[1641772184520,4.0,140.87,140.79,15.0398557]
[1641772184923,4.0,140.85,140.79,15.0398557]
[1641772185126,4.0,140.83,140.79,15.0398557]
[1641772185325,4.0,140.82,140.79,5.57e-05]
[1641772185523,4.0,140.8,140.76,100.38406183]
[1641772185722,4.0,140.79,140.76,100.38406183]
[1641772185923,4.0,140.79,140.73,15.01239747]
[1641772186123,4.0,140.78,140.73,15.01239747]
[1641772186624,5.68214649,140.8,140.73,15.01239747]
[1641772186823,4.0,140.79,140.73,15.01239747]
[1641772187025,4.0,140.79,140.7,39.96306183]
[1641772187325,5.68214649,140.8,140.68,2.49076084]
[1641772187528,27.66479,140.76,140.68,30.15555084]
[1641772187924,31.66479,140.76,140.68,2.49076084]
[1641772188724,4.0,140.75,140.68,2.49076084]
[1641772188926,27.66479,140.76,140.68,2.49076084]
[1641772189323,27.66479,140.76,140.63,146.8519]
[1641772189324,27.66479,140.76,140.63,129.34266084]
[1641772189523,27.66479,140.76,140.66,27.66479]
[1641772189924,27.66479,140.76,140.66,31.66479]
[1641772190127,27.66479,140.76,140.7,4.0]
[1641772190327,4.0,140.82,140.7,4.0]
[1641772190526,11.10403865,140.83,140.74,4.0330433]
[1641772190724,7.10403865,140.83,140.74,4.0330433]
[1641772191525,27.66479,140.82,140.74,4.0330433]
[1641772193130,1.35986941,140.75,140.74,4.0330433]
[1641772194630,1.35986941,140.75,140.72,27.66479]
[1641772195531,1.35986941,140.75,140.68,64.6373]
[1641772195933,1.35986941,140.75,140.69,4.0]
[1641772196133,1.35986941,140.75,140.7,4.0]
[1641772196932,5.68203601,140.8,140.7,4.0]
[1641772197533,5.68203601,140.8,140.72,27.66479]
[1641772198536,1.35914844,140.81,140.72,27.66479]
[1641772198735,1.35914844,140.81,140.72,31.66479]
[1641772198935,1.35914844,140.81,140.73,4.0]
[1641772199139,1.35914844,140.81,140.73,11.10126402]
[1641772199336,1.35914844,140.81,140.73,7.10126402]
[1641772199536,1.35914844,140.81,140.77,27.66479]
[1641772199736,1.35914844,140.81,140.74,64.5254]
[1641772199936,1.35914844,140.81,140.72,27.66479]
[1641772200336,7.04094385,140.81,140.72,27.66479]
[1641772200938,1.35914844,140.81,140.72,27.66479]
[1641772201139,37.34525268,140.84,140.72,27.66479]
[1641772201341,1.35911611,140.79,140.72,27.66479]
[1641772202342,7.04169738,140.79,140.72,27.66479]
[1641772202540,1.35911611,140.79,140.72,27.66479]
[1641772205147,1.35911611,140.79,140.72,31.66479]
[1641772205347,1.35911611,140.79,140.73,4.0]
[1641772205547,123.7608,140.85,140.77,27.66479]
[1641772205749,6.81572051,140.86,140.77,27.66479]
[1641772206348,1.35921273,140.78,140.77,27.66479]
[1641772206547,27.66479,140.87,140.77,38.76378549]
[1641772206747,6.81383219,140.89,140.77,38.76378549]
[1641772206948,6.81383219,140.89,140.77,27.66479]
[1641772207147,4.0,140.86,140.77,27.66479]
[1641772207347,4.0,140.85,140.73,7.10126402]
[1641772207547,27.66479,140.84,140.72,55.32958]
[1641772207747,9.68075664,140.83,140.72,55.32958]
[1641772207948,5.68075664,140.83,140.72,55.32958]
[1641772208950,9.68075664,140.83,140.72,55.32958]
[1641772209350,5.68075664,140.83,140.72,55.32958]
[1641772209551,27.66479,140.81,140.72,55.32958]
[1641772209750,5.68075664,140.83,140.72,55.32958]
[1641772210153,27.66479,140.84,140.72,55.32958]
[1641772210353,27.66479,140.84,140.78,4.03180871]
[1641772213056,7.76520822,140.85,140.78,4.03180871]
[1641772213657,7.76520822,140.85,140.78,31.69659871]
[1641772214257,7.76520822,140.85,140.78,27.66479]
[1641772214860,0.94940083,140.85,140.78,31.66479]
[1641772215060,0.94940083,140.85,140.78,38.76353352]
[1641772215261,2.52238859,140.84,140.78,38.76353352]
[1641772215460,2.52238859,140.84,140.79,4.0]
[1641772215660,8.942e-05,140.85,140.83,27.66479]
[1641772215861,39.96306183,140.88,140.83,27.66479]
[1641772216061,15.05426658,140.91,140.83,27.66479]
[1641772216662,4.0,140.89,140.8,30.15889923]
[1641772216862,5.68071452,140.83,140.79,15.05426658]
[1641772217062,5.68071452,140.83,140.8,15.05426658]
[1641772217262,4.0,140.86,140.8,15.05426658]
[1641772217661,27.66479,140.83,140.75,27.66479]
[1641772218263,27.66479,140.83,140.75,31.66479]
[1641772218663,15.05426658,140.86,140.75,31.66479]
[1641772218864,22.15527847,140.87,140.79,8.03192858]
[1641772219463,7.10101189,140.87,140.79,8.03192858]
[1641772219663,7.10101189,140.87,140.8,31.66479]
[1641772219863,15.05426658,140.88,140.81,4.0]
[1641772220063,15.05426658,140.88,140.82,4.0]
[1641772220265,15.05426658,140.88,140.81,5.774]
[1641772220464,15.05426658,140.91,140.81,1.774]
[1641772220664,15.05426658,140.91,140.82,4.0]
[1641772220864,15.05426658,140.91,140.81,61.7787]
[1641772220865,15.05426658,140.91,140.84,4.0]
[1641772221667,27.66479,140.93,140.85,27.66479]
[1641772222465,27.66479,140.93,140.85,31.66479]
[1641772227272,27.66479,140.93,140.86,4.02929191]
[1641772227472,27.66479,140.93,140.86,8.02929191]
[1641772228073,27.66479,140.93,140.87,4.0]
[1641772228473,27.66479,140.93,140.86,4.02929191]
[1641772228973,34.76151841,140.95,140.86,4.02929191]
[1641772229173,34.76151841,140.95,140.86,62.64169191]
[1641772229674,34.76151841,140.95,140.86,66.64169191]
[1641772230276,27.82519037,140.97,140.87,4.0]
[1641772230478,22.14998786,140.97,140.88,4.0]
[1641772230676,0.80592371,140.92,140.88,9.67852189]
[1641772231076,0.80592371,140.92,140.89,4.0]
[1641772231077,2.371e-05,140.92,140.89,4.0]
[1641772231277,2.371e-05,140.92,140.91,4.0]
[1641772231676,2.371e-05,140.92,140.9,9.67778496]
[1641772231876,2.371e-05,140.92,140.91,27.66479]
[1641772232477,2.371e-05,140.92,140.91,31.66479]
[1641772233679,2.371e-05,140.92,140.91,27.66479]
[1641772234181,2.371e-05,140.92,140.87,6.81454527]
[1641772234380,7.09546954,140.98,140.88,63.6475]
[1641772234881,0.80570701,140.91,140.89,4.0]
[1641772235180,0.80570701,140.91,140.9,4.02819134]
[1641772235380,15.05426658,141.0,140.9,4.02819134]
[1641772235780,15.05426658,141.0,140.91,27.66479]
[1641772236082,34.75874949,141.01,140.91,27.66479]
[1641772236883,34.75874949,141.01,140.91,31.66479]
[1641772239584,34.75874949,141.01,140.91,27.66479]
[1641772239983,4.0,140.98,140.89,27.66479]
[1641772240183,4.0,140.98,140.92,4.02828482]
[1641772240384,5.67519005,140.97,140.92,4.02828482]
[1641772241984,27.66479,140.96,140.92,4.02828482]
[1641772243988,27.66479,140.96,140.89,27.66479]
[1641772244788,4.0,140.93,140.89,27.66479]
[1641772244992,4.0,140.93,140.84,64.1772]
[1641772245191,5.6770782,140.92,140.84,64.1772]
[1641772245391,5.6770782,140.92,140.82,15.05426658]
[1641772245592,5.6770782,140.92,140.81,63.2405]
[1641772245593,4.0,140.91,140.81,63.2405]
[1641772245789,4.0,140.88,140.81,63.2405]
[1641772245994,27.66479,140.87,140.81,63.2405]
[1641772246193,27.66479,140.87,140.8,15.05426658]
[1641772246595,27.66479,140.87,140.78,92.88839]
[1641772246994,27.66479,140.87,140.78,65.2236]
[1641772247196,27.66479,140.87,140.76,102.83785658]
[1641772247796,27.66479,140.87,140.76,87.78359]
[1641772247996,27.66479,140.87,140.76,115.44838]
[1641772248798,27.66479,140.89,140.78,4.0]
[1641772248998,27.66479,140.89,140.81,4.0]
[1641772249197,27.66479,140.89,140.79,85.0127]
[1641772249397,27.66479,140.89,140.8,4.0]
[1641772249796,27.66479,140.89,140.79,100.06696658]
[1641772249997,27.66479,140.89,140.82,27.66479]
[1641772251200,7.09849157,140.92,140.82,27.66479]
[1641772251999,27.66479,140.9,140.82,27.66479]
[1641772252700,0.80604002,140.88,140.82,27.66479]
[1641772256706,31.66479,140.9,140.82,27.66479]
[1641772257105,0.80604504,140.87,140.82,27.66479]
[1641772260310,0.80604504,140.87,140.79,61.0127]
[1641772260611,0.80604504,140.87,140.79,88.67749]
[1641772260809,33.34267301,140.9,140.79,88.67749]
[1641772261011,0.80608483,140.86,140.79,88.67749]
[1641772261412,0.80608483,140.86,140.8,4.0]
[1641772261612,0.80608483,140.86,140.81,4.0]
[1641772262012,0.80608483,140.86,140.8,6.48836005]
[1641772262212,0.80608483,140.86,140.81,4.0]
[1641772262413,0.80608483,140.86,140.85,27.66479]
[1641772262612,78.60846658,140.95,140.85,31.66479]
[1641772262812,15.05426658,140.95,140.85,38.75900112]
[1641772263012,15.05426658,140.95,140.86,4.0]
[1641772263514,15.05426658,140.95,140.87,4.0]
[1641772263713,27.66479,140.96,140.87,4.0]
[1641772263912,27.66479,140.96,140.88,4.0]
[1641772264511,27.66479,140.96,140.89,27.66479]
[1641772266116,34.76101481,140.96,140.89,27.66479]
[1641772266715,2.51389525,140.95,140.89,27.66479]
[1641772267414,0.80572891,140.94,140.89,27.66479]
[1641772271125,27.66479,140.96,140.89,27.66479]
[1641772271623,0.80585514,140.93,140.9,4.0292757]
[1641772272323,27.66479,140.96,140.9,8.0292757]
[1641772272623,15.05426658,140.99,140.92,4.0]
[1641772272825,15.05426658,140.99,140.91,12.86319274]
[1641772273025,15.05426658,141.01,140.93,4.0]
[1641772274026,17.56979026,141.04,140.93,4.0]
[1641772274426,17.56979026,141.04,140.91,7.09119274]
[1641772274627,27.66479,141.0,140.92,29.43679]
[1641772274829,27.66479,141.0,140.9,4.0292757]
[1641772275228,5.67432831,140.99,140.9,4.0292757]
[1641772275429,12.76904275,140.99,140.88,15.05426658]
[1641772275629,5.67471329,140.98,140.87,63.3197]
[1641772275828,5.67471329,140.98,140.91,4.0283196]